[Event "New York Summer GM-A 2022"]
[Site "New York"]
[Date "2022.07.08"]
[Round "2.2"]
[White "Song, Michael"]
[Black "Saric, Ante"]
[Result "0-1"]
[ECO "A50"]
[WhiteElo "2409"]
[BlackElo "2510"]
[Annotator "TA"]
[PlyCount "80"]
[EventDate "2022.07.08"]
[EventType "tourn"]
[EventCountry "USA"]
[SourceTitle "playchess.com"]
[Source "ChessBase"]
[SourceQuality "1"]
[TimeControl "5400+30"]

{[%evp 9,80,10,22,22,21,18,19,0,8,0,0,-17,-18,-26,-31,-76,-63,-156,-150,-172,-173,-231,-198,-251,-110,-104,-103,-200,-198,-197,-195,-270,-294,-283,-255,-257,-198,-204,-185,-189,-133,-180,-101,-135,-104,-143,-104,-350,-343,-491,-500,-555,-553,-527,-548,-487,-520,-1393,-1555,-1484,-1437,-1495,-1407,-29985,-29986,-29986,-29987,-29985,-29984,-29988,-29989,-29993,-29994]} 1. d4 {[%emt 0:04:12]} Nf6 {[%emt 0:00:06]} 2. c4 {[%emt 0:00:07]} e6 {[%emt 0:00:03]} 3. Bf4 {[%emt 0:00:07]} b6 {[%emt 0:04:46]} 4. a3 {[%emt 0:01:23]} d5 {[%emt 0:04:17]} 5. cxd5 {[%emt 0:01:51] [#]} Nxd5 $146 {[%emt 0:04:39]} ({Predecessor:} 5... exd5 6. e3 Bd6 7. Bxd6 Qxd6 8. f4 O-O 9. Nf3 Qe7 10. Qd2 Nc6 11. Bb5 Na5 12. Qc2 Qxe3+ 13. Qe2 Qc1+ 14. Qd1 Qxb2 {0-1 (14) Swahnberg,L (1601)-Thys,H (1791) ICCF email 2012}) 6. Bg3 {[%emt 0:01:11] A50: Queen's Fianchetto Defence (1 d4 Nf6 2 c4 b6).} Bb7 {[%emt 0:00:05]} 7. Nf3 {[%emt 0:06:18]} Be7 {[%emt 0:02:35]} 8. Nbd2 {[%emt 0:01:40] The position is equal.} O-O {[%emt 0:03:12]} 9. e4 {[%emt 0:04:19]} Nf6 {[%emt 0:00:08]} 10. Bd3 {[%emt 0:00:27]} c5 {[%emt 0:04:46]} 11. e5 {[%emt 0:03:39]} Nh5 {[%emt 0:04:39]} 12. Ne4 {[%emt 0:04:28]} Nd7 {[%emt 0:07:38]} ({Don't play} 12... Nxg3 13. hxg3 h6 14. Bc2 $14) 13. Nfg5 {[%emt 0:12:05]} g6 $1 $17 {[%emt 0:04:43]} ({And not} 13... Bxg5 14. Qxh5 h6 15. O-O $11) 14. Qg4 {[%emt 0:07:59]} cxd4 {[%emt 0:07:33]} 15. f4 {[%emt 0:07:02]} (15. O-O $142) 15... Rc8 {[%emt 0:03:43]} 16. Rd1 {[%emt 0:04:53]} (16. O-O $142) 16... Bxe4 {[%emt 0:02:32]} (16... Nc5 $19 {and Black stays clearly on top.} 17. Nxc5 bxc5 18. Nxh7 Kxh7 19. Qxh5+ Kg7) 17. Nxe4 {[%emt 0:00:13]} Nc5 {[%emt 0:01:07]} 18. Nxc5 {[%emt 0:07:40]} (18. O-O $17) 18... bxc5 $19 {[%emt 0:04:39]} ({Weaker is} 18... Rxc5 19. Bf2 $15) 19. Bc4 {[%emt 0:00:02]} Rb8 {[%emt 0:01:25] White must now prevent ...Qa5+.} 20. Qe2 {[%emt 0:05:00] [#]} (20. Rd2 {was worth a try.}) 20... Bh4 $1 {[%emt 0:10:05]} 21. Qf2 {[%emt 0:00:13]} Qa5+ {[%emt 0:00:52]} 22. Kf1 {[%emt 0:02:21]} Be7 {[%emt 0:00:26]} 23. Qc2 {[%emt 0:01:30]} Qb6 {[%emt 0:03:18]} 24. b3 {[%emt 0:00:09]} Kg7 {[%emt 0:06:19]} (24... f6 $19 25. Re1 Rbe8 26. exf6 Rxf6) 25. Re1 {[%emt 0:03:01]} (25. Qe4 $17 {is a better defense.}) 25... Rfd8 {[%emt 0:01:07]} (25... f6 $19 {Hoping for ...Rbe8.} 26. Qe4 Qc7) 26. Qd2 {[%emt 0:01:00]} Qc6 {[%emt 0:06:57][%cal Ob8b3]} 27. Bf2 {[%emt 0:01:19]} Kg8 {[%emt 0:02:19][%cal Ob8b3]} 28. Rg1 $2 {[%emt 0:00:34] [#] This costs White the game.} (28. Kg1 $17) 28... Rxb3 $1 {[%emt 0:00:31]} 29. g4 {[%emt 0:07:20]} (29. Bxb3 $142 Qb5+ 30. Re2 Qxb3 31. g3) 29... Rc3 {[%emt 0:00:17]} 30. gxh5 {[%emt 0:00:50]} Rxc4 {[%emt 0:00:06]} 31. f5 {[%emt 0:00:30]} exf5 {[%emt 0:02:24] ...d3 is the strong threat.} 32. e6 {[%emt 0:00:06] aiming for exf7+.} Qa6 {[%emt 0:04:12] Strongly threatening ...Rc2+.} 33. Re2 {[%emt 0:00:01]} (33. Qd3 $142) 33... d3 {[%emt 0:02:03]} 34. exf7+ {[%emt 0:00:12]} Kxf7 {[%emt 0:00:30][%cal Bg8f7,Bf7e7,Be7f6][%mdl 32]} 35. Rxe7+ {[%emt 0:01:04]} Kxe7 {[%emt 0:00:05]} 36. Qh6 {[%emt 0:01:24] [#]} Rc1+ $3 {[%emt 0:00:51][%mdl 512] Black mates.} 37. Kg2 {[%emt 0:00:13]} Qc6+ {[%emt 0:00:29]} 38. Kg3 {[%emt 0:00:07]} f4+ {[%emt 0:00:57]} 39. Kh4 {[%emt 0:00:42]} Rxg1 {[%emt 0:01:29]} 40. Qxh7+ {[%emt 0:00:30]} Kf6 {[%emt 0:00:36] Weighted Error Value: White=0.63/Black=0.13 (very precise)} 0-1

[Event "New York Summer GM-A 2022"]
[Site "New York"]
[Date "2022.07.08"]
[Round "2.3"]
[White "Ostrovskiy, Aleksandr"]
[Black "Khamrakulov, Djurabek"]
[Result "0-1"]
[ECO "B12"]
[WhiteElo "2392"]
[BlackElo "2492"]
[Annotator "TA"]
[PlyCount "90"]
[EventDate "2022.07.08"]
[EventType "tourn"]
[EventCountry "USA"]
[SourceTitle "playchess.com"]
[Source "ChessBase"]
[SourceQuality "1"]
[TimeControl "5400+30"]

{[%evp 9,90,2,7,7,15,-23,-29,-29,-35,-27,-27,-30,0,-10,0,-7,0,0,0,0,0,0,0,0,0,0,-14,0,-14,-35,-39,-30,-17,-131,-121,-127,-127,-133,-126,-127,-129,-124,-123,-133,-125,-122,-112,-126,-110,-186,-180,-186,-181,-171,-163,-145,-155,-195,-186,-194,-199,-187,-193,-325,-331,-351,-346,-587,-574,-550,-552,-676,-647,-828,-818,-884,-837,-1034,-1022,-989,-972,-934,-743]} 1. e4 {[%emt 0:06:44]} c6 {[%emt 0:00:23]} 2. d4 {[%emt 0:00:55]} d5 {[%emt 0:00:08]} 3. e5 {[%emt 0:00:51]} Bf5 {[%emt 0:00:10]} 4. h4 {[%emt 0:00:11]} h5 {[%emt 0:00:14]} 5. Bd3 {[%emt 0:00:14]} Bxd3 {[%emt 0:00:08]} 6. Qxd3 {[%emt 0:00:05][%cal Oe5e6] B12: Caro-Kann: Advance Variation.} Qa5+ {[%emt 0:00:10]} 7. b4 {[%emt 0:00:08]} Qxb4+ {[%emt 0:07:40]} 8. Nd2 {[%emt 0:00:21][%cal Oe5e6] Black has an edge.} e6 {[%emt 0:00:07]} 9. Rb1 {[%emt 0:00:03]} Qe7 {[%emt 0:00:05]} 10. c4 {[%emt 0:03:36]} Qc7 {[%emt 0:01:22]} 11. Ne2 {[%emt 0:02:09]} Nd7 {[%emt 0:02:20]} 12. O-O {[%emt 0:16:53]} dxc4 {[%emt 0:06:21]} 13. Nxc4 {[%emt 0:01:20]} Nb6 {[%emt 0:00:33] [#]} 14. Bg5 $146 {[%emt 0:07:38]} ({Predecessor:} 14. Nc3 Nh6 15. Bg5 Nxc4 16. Qxc4 Qd7 17. Qb3 b6 18. Rfd1 Be7 19. Ne4 Nf5 20. Rbc1 {½-½ (33) Van Foreest,J (2714)-Carlsen,M (2864) Oslo 2022}) 14... Nxc4 {[%emt 0:09:03]} 15. Qxc4 {[%emt 0:00:38]} Ne7 {[%emt 0:00:22]} 16. Rb3 {[%emt 0:05:58]} Nd5 {[%emt 0:02:49]} 17. Rfb1 {[%emt 0:11:03]} b6 {[%emt 0:00:13]} 18. Ng3 {[%emt 0:00:38]} Be7 {[%emt 0:05:15]} 19. Qe2 {[%emt 0:27:05]} Bxg5 {[%emt 0:12:06]} 20. hxg5 {[%emt 0:00:06]} Ne7 {[%emt 0:00:04]} 21. Nxh5 {[%emt 0:08:55] Black keeps a firm grip on the game.} (21. Rd1 $11 {remains equal.}) 21... Nf5 $17 {[%emt 0:01:40]} 22. Rd1 {[%emt 0:00:56]} O-O-O {[%emt 0:03:45]} 23. Rbd3 {[%emt 0:00:31] [#]} Qe7 $1 {[%emt 0:01:18]} 24. Qf3 {[%emt 0:04:37]} Kb7 {[%emt 0:03:07]} 25. Ng3 {[%emt 0:00:33]} Qxg5 {[%emt 0:00:56]} 26. Nxf5 {[%emt 0:00:39]} Qxf5 {[%emt 0:00:24]} ({Reject} 26... exf5 $6 27. d5 cxd5 28. Rxd5 $11) 27. Qxf5 {[%emt 0:00:36]} exf5 {[%emt 0:00:02][%mdl 4096] Endgame KRR-KRR} 28. Rf3 {[%emt 0:00:23]} Rh5 {[%emt 0:00:27]} 29. g4 {[%emt 0:00:03]} (29. g3 $17) 29... Rg5 $19 {[%emt 0:00:06]} 30. Rxf5 {[%emt 0:00:05]} Rxg4+ {[%emt 0:00:05]} 31. Kf1 {[%emt 0:00:01] [#]} f6 {[%emt 0:02:27]} 32. exf6 {[%emt 0:01:26]} gxf6 {[%emt 0:00:08]} 33. Rxf6 {[%emt 0:00:55]} Rgxd4 {[%emt 0:00:49]} 34. Rf7+ {[%emt 0:00:31]} Ka6 {[%emt 0:01:44]} 35. Re1 {[%emt 0:00:10]} R8d7 {[%emt 0:00:58]} 36. Rf6 {[%emt 0:00:59]} (36. Rxd7 {only move.} Rxd7 37. Kg2) 36... c5 {[%emt 0:03:36][%cal Bc6c5,Bc5c4][%mdl 32]} 37. Re2 {[%emt 0:00:32]} c4 {[%emt 0:01:02]} 38. Rc6 $2 {[%emt 0:00:24]} (38. Rc2) 38... Kb5 {[%emt 0:02:08] Black is clearly winning.} 39. Rc8 {[%emt 0:00:04]} Kb4 {[%emt 0:00:16]} 40. Re6 {[%emt 0:01:00]} b5 {[%emt 0:00:54]} 41. Re3 {[%emt 0:00:32]} a5 {[%emt 0:01:01]} 42. Rc6 {[%emt 0:00:29]} R7d5 {[%emt 0:02:21]} 43. Rc8 {[%emt 0:00:27]} Rd1+ {[%emt 0:00:19]} 44. Kg2 {[%emt 0:00:06]} R1d3 {[%emt 0:00:19]} 45. Kf3 {[%emt 0:00:59]} Ka3 {[%emt 0:00:41] Weighted Error Value: White=0.36/Black=0.02 (flawless)} 0-1

[Event "New York Summer GM-A 2022"]
[Site "New York"]
[Date "2022.07.08"]
[Round "2.4"]
[White "Williams, Justus"]
[Black "Kaliksteyn, Alexander"]
[Result "0-1"]
[ECO "E04"]
[WhiteElo "2390"]
[BlackElo "2380"]
[Annotator "RC"]
[PlyCount "52"]
[EventDate "2022.07.08"]
[EventType "tourn"]
[EventCountry "USA"]
[SourceTitle "playchess.com"]
[Source "ChessBase"]
[SourceQuality "1"]
[TimeControl "5400+30"]

1. Nf3 {[%emt 0:00:03]} d5 {[%emt 0:00:11]} 2. d4 {[%emt 0:00:46]} Nf6 {[%emt 0:00:13]} 3. c4 {[%emt 0:00:14]} e6 {[%emt 0:00:12]} 4. Nc3 {[%emt 0:00:15]} c6 {[%emt 0:00:21]} 5. g3 {[%emt 0:01:30]} dxc4 {[%emt 0:01:34]} 6. Bg2 {[%emt 0:00:56]} b5 {[%emt 0:01:12]} 7. O-O {[%emt 0:00:42]} Bb7 {[%emt 0:00:24]} 8. Ne5 {[%emt 0:02:30]} Nd5 {[%emt 0:04:15]} 9. e4 {[%emt 0:08:10]} Nxc3 {[%emt 0:00:56]} 10. bxc3 {[%emt 0:00:06]} Nd7 {[%emt 0:01:23]} 11. f4 {[%emt 0:02:07]} Be7 {[%emt 0:06:41]} 12. Rb1 {[%emt 0:02:40]} Qc7 {[%emt 0:12:29]} 13. Be3 {[%emt 0:04:17]} a6 {[%emt 0:07:40]} 14. Qc2 {[%emt 0:08:52]} O-O {[%emt 0:02:08]} 15. g4 {[%emt 0:09:56]} c5 {[%emt 0:15:18]} 16. Nxd7 {[%emt 0:09:40]} Qxd7 {[%emt 0:00:10]} 17. f5 {[%emt 0:00:05]} cxd4 {[%emt 0:02:37]} 18. cxd4 {[%emt 0:01:12]} Rac8 {[%emt 0:07:05]} 19. Rf3 {[%emt 0:01:42]} e5 {[%emt 0:09:57]} 20. dxe5 {[%emt 0:12:05]} Rfd8 {[%emt 0:01:12]} 21. f6 {[%emt 0:04:56]} Bc5 {[%emt 0:02:16]} 22. Rbf1 {[%emt 0:18:05]} Qd2 {[%emt 0:03:57]} 23. Qxd2 {[%emt 0:02:04]} Rxd2 {[%emt 0:00:09]} 24. Bxc5 {[%emt 0:05:57]} Rxc5 {[%emt 0:00:06]} 25. e6 {[%emt 0:00:03]} fxe6 {[%emt 0:00:51]} 26. Rh3 {[%emt 0:02:07]} gxf6 {[%emt 0:06:08]} 0-1

[Event "New York Summer GM-A 2022"]
[Site "New York"]
[Date "2022.07.08"]
[Round "2.5"]
[White "Lu, Maximillian"]
[Black "Korley, Kassa"]
[Result "1-0"]
[ECO "E05"]
[WhiteElo "2398"]
[BlackElo "2421"]
[Annotator "RC"]
[PlyCount "55"]
[EventDate "2022.07.08"]
[EventType "tourn"]
[EventCountry "USA"]
[SourceTitle "playchess.com"]
[Source "ChessBase"]
[SourceQuality "1"]
[TimeControl "5400+30"]

1. c4 {[%emt 0:00:02]} e6 {[%emt 0:00:06]} 2. Nf3 {[%emt 0:00:26]} d5 {[%emt 0:00:03]} 3. g3 {[%emt 0:00:40]} Nf6 {[%emt 0:00:04]} 4. Bg2 {[%emt 0:00:10]} Be7 {[%emt 0:00:02]} 5. d4 {[%emt 0:00:10]} O-O {[%emt 0:00:06]} 6. O-O {[%emt 0:02:59]} dxc4 {[%emt 0:00:05]} 7. Qa4 {[%emt 0:00:07]} b6 {[%emt 0:02:58]} 8. Ne5 {[%emt 0:06:11]} Qxd4 {[%emt 0:00:45]} 9. Bxa8 {[%emt 0:00:14]} Qxe5 {[%emt 0:00:05]} 10. Qxa7 {[%emt 0:04:06]} Bd7 {[%emt 0:05:11]} 11. Nc3 {[%emt 0:07:13]} Nc6 {[%emt 0:32:06]} 12. Bxc6 {[%emt 0:01:39]} Bxc6 {[%emt 0:00:04]} 13. Bf4 {[%emt 0:01:04]} Qh5 {[%emt 0:23:06]} 14. Qxc7 {[%emt 0:06:25]} Ng4 {[%emt 0:00:06]} 15. h4 {[%emt 0:00:08]} Qc5 {[%emt 0:01:10]} 16. Rad1 {[%emt 0:01:25]} e5 {[%emt 0:00:16]} 17. Bg5 {[%emt 0:04:57]} f6 {[%emt 0:00:42]} 18. Bc1 {[%emt 0:00:01]} h6 {[%emt 0:02:37]} 19. Nd5 {[%emt 0:07:31]} Bd8 {[%emt 0:02:50]} 20. Qc8 {[%emt 0:00:15]} f5 {[%emt 0:01:11]} 21. Nb4 {[%emt 0:08:28]} Ba4 {[%emt 0:01:27]} 22. Qe6+ {[%emt 0:04:01]} Kh8 {[%emt 0:00:05]} 23. b3 {[%emt 0:01:43]} Bb5 {[%emt 0:02:48]} 24. Ba3 {[%emt 0:05:59]} cxb3 {[%emt 0:03:46]} 25. Nc2 {[%emt 0:15:21]} bxc2 {[%emt 0:01:04]} 26. Bxc5 {[%emt 0:00:57]} cxd1=Q {[%emt 0:00:09]} 27. Rxd1 {[%emt 0:00:06]} bxc5 {[%emt 0:00:05]} 28. Qc8 {[%emt 0:00:08]} 1-0

[Event "New York Summer GM-A 2022"]
[Site "New York"]
[Date "2022.07.09"]
[Round "3.1"]
[White "Korley, Kassa"]
[Black "Zhou, Liran"]
[Result "1-0"]
[ECO "A13"]
[WhiteElo "2421"]
[BlackElo "2393"]
[Annotator "RC"]
[PlyCount "85"]
[EventDate "2022.07.08"]
[EventType "tourn"]
[EventCountry "USA"]
[SourceTitle "playchess.com"]
[Source "ChessBase"]
[SourceQuality "1"]
[TimeControl "5400+30"]

1. Nf3 {[%emt 0:00:02]} Nf6 {[%emt 0:02:14]} 2. g3 {[%emt 0:00:03]} e6 {[%emt 0:00:57]} 3. Bg2 {[%emt 0:00:03]} d5 {[%emt 0:01:06]} 4. O-O {[%emt 0:00:10]} c5 {[%emt 0:01:00]} 5. c4 {[%emt 0:00:28]} d4 {[%emt 0:02:19]} 6. e3 {[%emt 0:00:09]} Nc6 {[%emt 0:02:07]} 7. exd4 {[%emt 0:00:25]} cxd4 {[%emt 0:00:14]} 8. d3 {[%emt 0:00:03]} Be7 {[%emt 0:01:26]} 9. Re1 {[%emt 0:00:37]} O-O {[%emt 0:01:04]} 10. Na3 {[%emt 0:00:08]} Nd7 {[%emt 0:06:57]} 11. Nc2 {[%emt 0:01:15]} e5 {[%emt 0:01:09]} 12. b4 {[%emt 0:08:24]} f6 {[%emt 0:07:53]} 13. Rb1 {[%emt 0:08:53]} a5 {[%emt 0:04:49]} 14. a3 {[%emt 0:00:04]} Nb6 {[%emt 0:00:33]} 15. Bd2 {[%emt 0:31:07]} axb4 {[%emt 0:03:45]} 16. axb4 {[%emt 0:02:29]} Bf5 {[%emt 0:01:52]} 17. b5 {[%emt 0:08:37]} Na5 {[%emt 0:09:30]} 18. Nb4 {[%emt 0:03:39]} Qd7 {[%emt 0:12:27]} 19. Ra1 {[%emt 0:01:54]} Rfc8 {[%emt 0:08:12]} 20. Nxe5 {[%emt 0:06:09]} fxe5 {[%emt 0:00:48]} 21. Rxa5 {[%emt 0:01:02]} Rxa5 {[%emt 0:00:17]} 22. Nd5 {[%emt 0:00:08]} Rxb5 {[%emt 0:11:19]} 23. Nxe7+ {[%emt 0:01:39]} Qxe7 {[%emt 0:00:06]} 24. cxb5 {[%emt 0:00:03]} Bxd3 {[%emt 0:20:26]} 25. Bf4 {[%emt 0:00:44]} Bc2 {[%emt 0:00:00]} 26. Qxd4 {[%emt 0:01:31]} exd4 {[%emt 0:00:00]} 27. Rxe7 {[%emt 0:00:05]} Rc5 {[%emt 0:00:00]} 28. Rxb7 {[%emt 0:03:45]} Rxb5 {[%emt 0:00:00]} 29. h4 {[%emt 0:00:20]} h6 {[%emt 0:00:00]} 30. h5 {[%emt 0:03:32]} Kh7 {[%emt 0:01:16]} 31. g4 {[%emt 0:02:02]} Nd5 {[%emt 0:01:22]} 32. Rxb5 {[%emt 0:01:55]} Nxf4 {[%emt 0:00:07]} 33. Rc5 {[%emt 0:01:31]} Bd1 {[%emt 0:01:05]} 34. Be4+ {[%emt 0:00:55]} Kg8 {[%emt 0:00:05]} 35. f3 {[%emt 0:00:15]} d3 {[%emt 0:00:51]} 36. Kf2 {[%emt 0:01:23]} Be2 {[%emt 0:00:11]} 37. Ke3 {[%emt 0:00:17]} Ng2+ {[%emt 0:00:16]} 38. Kf2 {[%emt 0:03:17]} Nf4 {[%emt 0:00:25]} 39. Bg6 {[%emt 0:00:44]} Nxg6 {[%emt 0:01:05]} 40. hxg6 {[%emt 0:00:04]} Kf8 {[%emt 0:00:09]} 41. Rc7 {[%emt 0:01:04]} Bd1 {[%emt 0:00:20]} 42. Rf7+ {[%emt 0:00:09]} Ke8 {[%emt 0:00:23]} 43. Ke3 {[%emt 0:00:26]} 1-0

[Event "New York Summer GM-A 2022"]
[Site "New York"]
[Date "2022.07.09"]
[Round "3.2"]
[White "Kaliksteyn, Alexander"]
[Black "Lu, Maximillian"]
[Result "1-0"]
[ECO "D80"]
[WhiteElo "2380"]
[BlackElo "2398"]
[Annotator "RC"]
[PlyCount "51"]
[EventDate "2022.07.08"]
[EventType "tourn"]
[EventCountry "USA"]
[SourceTitle "playchess.com"]
[Source "ChessBase"]
[SourceQuality "1"]
[TimeControl "5400+30"]

1. d4 {[%emt 0:00:30]} Nf6 {[%emt 0:01:27]} 2. Nf3 {[%emt 0:00:00]} g6 {[%emt 0:00:34]} 3. c4 {[%emt 0:00:11]} Bg7 {[%emt 0:00:09]} 4. Nc3 {[%emt 0:00:12]} d5 {[%emt 0:00:20]} 5. Bg5 {[%emt 0:00:37]} Ne4 {[%emt 0:00:28]} 6. Bf4 {[%emt 0:00:14]} Nxc3 {[%emt 0:01:29]} 7. bxc3 {[%emt 0:00:09]} O-O {[%emt 0:08:17]} 8. e3 {[%emt 1:32:37]} c5 {[%emt 0:00:32]} 9. cxd5 {[%emt 0:00:00]} Qxd5 {[%emt 0:00:21]} 10. Be2 {[%emt 0:00:00]} cxd4 {[%emt 0:03:58]} 11. cxd4 {[%emt 0:00:00]} Nc6 {[%emt 0:00:01]} 12. O-O {[%emt 0:00:00]} Rd8 {[%emt 0:01:23]} 13. Qa4 {[%emt 0:00:00]} Bd7 {[%emt 0:04:50]} 14. Qa3 {[%emt 0:00:00]} b5 {[%emt 0:06:38]} 15. Rac1 {[%emt 0:00:00]} b4 {[%emt 0:02:15]} 16. Qa6 {[%emt 0:00:00]} Nb8 {[%emt 0:21:31]} 17. Bc4 {[%emt 0:00:00]} Qf5 {[%emt 0:04:05]} 18. Qb7 {[%emt 0:00:00]} Nc6 {[%emt 0:00:02]} 19. Bc7 {[%emt 0:00:00]} Rdc8 {[%emt 0:05:51]} 20. Ba6 {[%emt 0:00:00]} Qe6 {[%emt 0:25:35]} 21. d5 {[%emt 0:00:00]} Qxd5 {[%emt 0:00:02]} 22. Rfd1 {[%emt 0:00:00]} Qxa2 {[%emt 0:07:27]} 23. Rxd7 {[%emt 0:00:00]} Nd8 {[%emt 0:01:13]} 24. Qb5 {[%emt 0:00:00]} Rab8 {[%emt 0:00:10]} 25. Qf1 {[%emt 0:00:00]} Bc3 {[%emt 0:03:36]} 26. Bxc8 {[%emt 0:00:42]} 1-0

[Event "New York Summer GM-A 2022"]
[Site "New York"]
[Date "2022.07.09"]
[Round "3.3"]
[White "Khamrakulov, Djurabek"]
[Black "Williams, Justus"]
[Result "1-0"]
[ECO "B07"]
[WhiteElo "2492"]
[BlackElo "2390"]
[Annotator "RC"]
[PlyCount "75"]
[EventDate "2022.07.08"]
[EventType "tourn"]
[EventCountry "USA"]
[SourceTitle "playchess.com"]
[Source "ChessBase"]
[SourceQuality "1"]
[TimeControl "5400+30"]

1. e4 {[%emt 0:00:03]} c5 {[%emt 0:00:14]} 2. c3 {[%emt 0:00:07]} d6 {[%emt 0:00:51]} 3. d4 {[%emt 0:00:07]} Nf6 {[%emt 0:00:06]} 4. Bd3 {[%emt 0:00:12]} Nc6 {[%emt 0:01:14]} 5. Nf3 {[%emt 0:00:42]} e5 {[%emt 0:00:56]} 6. d5 {[%emt 0:02:42]} Ne7 {[%emt 0:00:16]} 7. h3 {[%emt 0:07:45]} Ng6 {[%emt 0:01:05]} 8. c4 {[%emt 0:01:02]} Nh5 {[%emt 0:02:53]} 9. Nc3 {[%emt 0:03:30]} Be7 {[%emt 0:00:50]} 10. g3 {[%emt 0:07:12]} Nf6 {[%emt 0:02:22]} 11. Be3 {[%emt 0:01:13]} Bd7 {[%emt 0:02:35]} 12. Qe2 {[%emt 0:02:09]} Qc8 {[%emt 0:05:01]} 13. Ng1 {[%emt 0:01:49]} Bd8 {[%emt 0:05:45]} 14. f4 {[%emt 0:04:22]} exf4 {[%emt 0:02:01]} 15. gxf4 {[%emt 0:00:06]} O-O {[%emt 0:00:34]} 16. O-O-O {[%emt 0:05:15]} Re8 {[%emt 0:03:46]} 17. Qf3 {[%emt 0:05:48]} a6 {[%emt 0:08:24]} 18. Nge2 {[%emt 0:01:57]} b5 {[%emt 0:00:25]} 19. Bf2 {[%emt 0:03:30]} bxc4 {[%emt 0:03:10]} 20. Bc2 {[%emt 0:03:23]} Rb8 {[%emt 0:10:06]} 21. Rdg1 {[%emt 0:01:01]} Qb7 {[%emt 0:00:51]} 22. Nd1 {[%emt 0:00:36]} Ba5 {[%emt 0:10:16]} 23. Be1 {[%emt 0:12:27]} Bxe1 {[%emt 0:10:39]} 24. Rxe1 {[%emt 0:00:14]} Re7 {[%emt 0:03:30]} 25. Nec3 {[%emt 0:01:46]} Ne8 {[%emt 0:01:04]} 26. e5 {[%emt 0:16:34]} dxe5 {[%emt 0:04:22]} 27. Bxg6 {[%emt 0:00:30]} hxg6 {[%emt 0:01:15]} 28. fxe5 {[%emt 0:00:08]} Nc7 {[%emt 0:00:33]} 29. Rh2 {[%emt 0:09:45]} Nb5 {[%emt 0:03:51]} 30. h4 {[%emt 0:02:45]} Rbe8 {[%emt 0:03:29]} 31. Qf4 {[%emt 0:04:26]} Qb8 {[%emt 0:01:49]} 32. Nxb5 {[%emt 0:00:34]} axb5 {[%emt 0:00:59]} 33. d6 {[%emt 0:00:06]} Re6 {[%emt 0:00:44]} 34. h5 {[%emt 0:00:36]} gxh5 {[%emt 0:03:09]} 35. Rxh5 {[%emt 0:00:50]} f6 {[%emt 0:00:25]} 36. Rg1 {[%emt 0:00:41]} fxe5 {[%emt 0:01:00]} 37. Qg5 {[%emt 0:00:27]} g6 {[%emt 0:00:48]} 38. Qh6 {[%emt 0:00:12]} 1-0